[Event "German Bundesliga 2022-23"]
[Site "Germany"]
[Date "2022.10.23"]
[Round "2.16"]
[White "Morgunov, Marc"]
[Black "Koellner, Ruben Gideon"]
[Result "1/2-1/2"]
[ECO "C64"]
[WhiteElo "2417"]
[BlackElo "2403"]
[Annotator "TA"]
[PlyCount "42"]
[EventDate "2022.10.21"]
[EventType "team-tourn"]
[EventCountry "GER"]
[SourceTitle "playchess.com"]
[Source "ChessBase"]
[SourceQuality "1"]
[TimeControl "40/6000+30:3000+30"]

{[%evp 18,42,27,22,30,2,9,0,0,-17,-10,-10,-12,-29,-5,-10,-10,-10,-9,-12,-8,-15,-7,-12,514,-672,-662]} 1. e4 {[%emt 0:00:08]} e5 {[%emt 0:00:06]} 2. Nf3 {[%emt 0:00:04]} Nc6 {[%emt 0:00:04]} 3. Bb5 {[%emt 0:00:06]} Bc5 {[%emt 0:00:05]} 4. O-O {[%emt 0:01:24]} Nd4 {[%emt 0:00:05]} 5. Nxd4 {[%emt 0:00:07]} Bxd4 {[%emt 0:00:05]} 6. c3 {[%emt 0:01:23]} Bb6 {[%emt 0:00:06]} 7. d4 {[%emt 0:03:03]} c6 {[%emt 0:00:06]} 8. Ba4 {[%emt 0:11:55]} d6 {[%emt 0:00:06]} 9. Na3 {[%emt 0:08:04]} Nf6 {[%emt 0:05:17]} 10. Nc4 {[%emt 0:05:05]} Bc7 $1 {[%emt 0:00:00] [#] White must now prevent ...b5. C64: Ruy Lopez: Classical Defence (3...Bc5) except 4 0-0 Nf6.} 11. dxe5 {[%emt 0:05:10]} (11. Bc2 $5 {[%cal Rd4e5]}) 11... dxe5 {[%emt 0:00:00] ...b5 is the strong threat.} 12. Qxd8+ {[%emt 0:01:25]} Kxd8 {[%emt 0:00:00] The position is equal.} 13. Bc2 {[%emt 0:00:43]} Be6 {[%emt 0:00:00]} 14. Ne3 {[%emt 0:09:48]} g6 {[%emt 0:03:03] Against Nf5} 15. b3 {[%emt 0:14:21]} Ke7 {[%emt 0:01:36] [#]} 16. Ba3+ $146 {[%emt 0:00:31]} ({Predecessor:} 16. g3 Rhd8 17. Ba3+ Bd6 18. Bxd6+ Rxd6 19. f4 Ng4 20. Nxg4 Bxg4 21. Rf2 Rad8 22. Kg2 {0-1 (35) Klaus,I (2148)-Terraz,C (2126) Germany 2005}) 16... Bd6 {[%emt 0:00:11]} 17. Bxd6+ {[%emt 0:01:19]} Kxd6 {[%emt 0:00:10]} 18. f3 {[%emt 0:03:43]} Rhd8 {[%emt 0:00:53]} 19. Rfd1+ {[%emt 0:00:28]} Ke7 {[%emt 0:00:10]} 20. Kf2 {[%emt 0:00:09]} Rd5 $2 {[%emt 0:00:08][%mdl 8192] [#]} 21. Rd2 $4 {[%mdl 8192]} Rxd2+ {[%emt 0:00:20][%mdl 32768] Weighted Error Value: White=0.53/Black=0.78. An unexpected result.} 1/2-1/2

[Event "German Bundesliga 2022-23"]
[Site "Germany"]
[Date "2022.10.23"]
[Round "2.16"]
[White "Muetsch, Annmarie"]
[Black "Kuznecovs, Nikita"]
[Result "1-0"]
[ECO "C03"]
[WhiteElo "2238"]
[BlackElo "2301"]
[Annotator "TA"]
[PlyCount "101"]
[EventDate "2022.10.21"]
[EventType "team-tourn"]
[EventCountry "GER"]
[SourceTitle "playchess.com"]
[Source "ChessBase"]
[SourceQuality "1"]
[TimeControl "40/6000+30:3000+30"]

{[%evp 11,101,13,18,24,68,65,76,96,73,92,127,117,167,142,149,149,149,136,149,141,141,147,141,97,147,149,158,120,145,62,97,101,83,53,40,50,45,63,66,67,72,75,134,99,369,377,377,375,364,335,397,406,376,406,401,397,406,405,404,401,379,353,397,374,422,313,288,0,422,422,682,629,502,491,634,610,1076,842,6103,9332,4133,999,29969,29970,29976,29978,29984,29980,29980,29981,29980,29981]} 1. e4 {[%emt 0:00:07]} e6 {[%emt 0:00:26]} 2. d4 {[%emt 0:00:09]} d5 {[%emt 0:00:08]} 3. Nd2 {[%emt 0:00:19]} Be7 {[%emt 0:02:31]} 4. Bd3 {[%emt 0:00:30]} c5 {[%emt 0:00:08]} 5. dxc5 {[%emt 0:00:11]} Nf6 {[%emt 0:00:05]} 6. Qe2 {[%emt 0:00:27]} O-O {[%emt 0:06:52]} 7. Ngf3 {[%emt 0:00:21] C03: French Tarrasch: Unusual Black 3rd moves.} Na6 {[%emt 0:00:07]} 8. e5 {[%emt 0:06:38]} Nd7 $1 {[%emt 0:00:39]} 9. Bxa6 {[%emt 0:04:25] White is better.} bxa6 {[%emt 0:00:08]} 10. b4 {[%emt 0:00:08] [#]} Rb8 $146 {[%emt 0:12:18]} ({Predecessor:} 10... Qc7 11. Nb3 f6 12. Bb2 fxe5 13. Nxe5 Bf6 14. f4 Bh4+ 15. g3 Rxf4 16. O-O-O Re4 {0-1 (27) Mohammad,M (2279)-Neelash,S (2418) Dhaka 2021}) 11. a3 {[%emt 0:07:56][%cal Ba2a3,Ba3b4][%mdl 32]} f6 {[%emt 0:08:27]} (11... a5 $16 {was necessary.}) 12. O-O {[%emt 0:08:59]} Nxe5 {[%emt 0:07:06]} 13. Nxe5 {[%emt 0:01:43]} fxe5 {[%emt 0:00:07]} 14. Qxe5 {[%emt 0:04:25]} Rxb4 {[%emt 0:01:07]} 15. axb4 {[%emt 0:00:40]} Bf6 {[%emt 0:00:07] [#]} 16. Qg3 {[%emt 0:13:04]} Bxa1 {[%emt 0:00:30]} 17. Nf3 {[%emt 0:04:34]} Bc3 {[%emt 0:03:55]} ({Black should try} 17... Bf6) 18. Bf4 $1 $16 {[%emt 0:10:22]} Bxb4 {[%emt 0:15:03]} 19. Be5 {[%emt 0:03:00][%csl Ge5][%cal Rg3g7]} Qd7 {[%emt 0:13:10]} 20. Bd4 {[%emt 0:09:02]} ({White should play} 20. Bd6 $1 $16 {[%cal Rd6f8]} Rd8 21. Ne5 (21. Qh4 Bc3 $11)) 20... Ba5 {[%emt 0:19:56][%cal Bb4a5,Ba5c7,Bc7d8][%mdl 32] [#]} 21. Ne5 $1 {[%emt 0:00:52][%mdl 1024] White has strong compensation.} Qb7 {[%emt 0:00:28]} 22. c3 {[%emt 0:11:44]} Bc7 {[%emt 0:08:29]} 23. c6 {[%emt 0:02:06]} Qb5 {[%emt 0:00:34]} 24. Qg5 $40 {[%emt 0:04:45][%mdl 128] Black must now prevent Ng4. White attacks.} Bd8 $1 {[%emt 0:01:12]} (24... Rf5 $2 25. Qe7 Bxe5 26. Bxe5 $18) 25. Qg4 {[%emt 0:02:33]} Bf6 {[%emt 0:00:26]} 26. h4 {[%emt 0:01:00]} Qa4 {[%emt 0:06:34]} (26... a5 $142) 27. Qg3 {[%emt 0:01:31] White has more active pieces.} Qc2 $2 {[%emt 0:02:05][%mdl 8192] [#]} (27... Qa5 $16 {was called for.}) 28. Nd7 $1 $18 {[%emt 0:09:29]} Bxd7 {[%emt 0:00:36]} (28... Bxd4 $2 29. Nxf8 e5 30. cxd4 $18) 29. Bxf6 {[%emt 0:00:36][%csl Gf6][%cal Rg3g7][%mdl 64] Pin} ({Worse is} 29. cxd7 Bxd4 30. cxd4 Qc6 $11) 29... Qg6 {[%emt 0:00:08]} 30. Qxg6 {[%emt 0:00:22]} ({Less strong is} 30. cxd7 Qxf6 31. Rb1 e5 $14) 30... hxg6 {[%emt 0:00:07]} 31. Be7 {[%emt 0:00:33]} Bxc6 {[%emt 0:00:07]} 32. Bxf8 {[%emt 0:00:06]} Kxf8 {[%emt 0:00:05][%mdl 4096] Endgame KR-KB} 33. Ra1 {[%emt 0:01:11]} Bb5 {[%emt 0:00:22]} 34. f4 {[%emt 0:00:26]} Ke7 {[%emt 0:00:08]} 35. Kf2 {[%emt 0:00:07]} Kd6 {[%emt 0:00:31]} 36. Ke3 {[%emt 0:00:20]} Kc5 {[%emt 0:00:06]} 37. g4 {[%emt 0:03:04]} Kc4 {[%emt 0:01:37]} 38. Ra3 {[%emt 0:00:24]} Kc5 {[%emt 0:01:16]} 39. Ra1 {[%emt 0:00:29]} (39. Ra2 $142) 39... Kc4 $1 {[%emt 0:00:08]} 40. Kd2 {[%emt 0:00:37] Strongly threatening Re1.} Kb3 {[%emt 0:01:27]} (40... a5 $142 41. Rxa5 a6) 41. Rb1+ {[%emt 0:02:28]} Kc4 {[%emt 0:00:28]} 42. Re1 {[%emt 0:15:19]} Bd7 {[%emt 0:16:11]} 43. f5 {[%emt 0:05:37]} gxf5 {[%emt 0:26:02]} 44. gxf5 {[%emt 0:00:07]} e5 {[%emt 0:00:26]} 45. Rxe5 {[%emt 0:00:57] White threatens Re7 and mate.} a5 {[%emt 0:00:09]} 46. h5 {[%emt 0:02:37]} (46. Re7 $142 Bxf5 47. Rc7+ Kb5 48. Rxg7) 46... d4 {[%emt 0:00:18]} 47. cxd4 {[%emt 0:01:27] White mates.} Kxd4 {[%emt 0:00:09]} 48. Rxa5 {[%emt 0:02:11]} Ke4 {[%emt 0:00:06]} 49. h6 {[%emt 0:06:38]} gxh6 {[%emt 0:00:08]} 50. f6 {[%emt 0:00:03]} Be6 {[%emt 0:00:14]} 51. Rxa7 {[%emt 0:00:10] Weighted Error Value: White=0.17 (very precise) /Black=0.44} 1-0

[Event "German Bundesliga 2022-23"]
[Site "Germany"]
[Date "2022.11.26"]
[Round "3"]
[White "Indjic, Aleksandar"]
[Black "Moiseenko, Alexander"]
[Result "1-0"]
[ECO "B23"]
[WhiteElo "2631"]
[BlackElo "2582"]
[Annotator "TA"]
[PlyCount "105"]
[EventDate "2022.10.21"]
[EventType "team-tourn"]
[EventCountry "GER"]
[SourceTitle "playchess.com"]
[Source "ChessBase"]
[SourceQuality "1"]
[TimeControl "40/6000+30:3000+30"]

{[%evp 9,105,30,25,22,33,39,41,31,38,38,45,37,43,31,38,33,22,24,41,22,111,101,104,107,114,104,110,110,108,106,100,109,108,103,104,103,116,117,118,110,121,115,143,120,156,141,160,158,279,259,291,293,295,304,302,301,289,296,359,352,423,403,426,415,544,544,481,445,734,699,809,195,772,735,1118,725,1186,1097,1536,1674,1425,1523,1705,1611,5277,4479,7626,4714,29973,29976,29977,29978,29977,29978,29977,29971,29950,6103]} 1. e4 {[%emt 0:01:00]} c5 {[%emt 0:01:00]} 2. Nc3 {[%emt 0:00:30]} e6 {[%emt 0:02:30]} 3. Nge2 {[%emt 0:00:30]} Nc6 {[%emt 0:01:30]} 4. g3 {[%emt 0:04:30]} d5 {[%emt 0:04:30]} 5. exd5 {[%emt 0:00:30]} exd5 {[%emt 0:00:30]} 6. d4 $1 {[%emt 0:00:30] B23: Closed Sicilian: Lines without g3.} Nf6 {[%emt 0:09:30]} 7. Be3 {[%emt 0:01:30]} cxd4 {[%emt 0:07:30]} 8. Bxd4 {[%emt 0:00:30] White is slightly better.} Nxd4 {[%emt 0:10:30]} 9. Qxd4 {[%emt 0:00:30] [#]} Qa5 $146 {[%emt 0:01:30]} ({Predecessor:} 9... Be7 10. Bg2 O-O 11. O-O-O Bf5 12. Nxd5 Nxd5 13. Qxd5 Qc8 14. Nd4 Bg4 15. Rd3 Rb8 {1-0 (59) Jurkovic,H (2270)-Popovic,I (2195) Zadar 1994}) 10. O-O-O {[%emt 0:08:30] Strongly threatening Nf4.} Bc5 {[%emt 0:06:30]} 11. Qe5+ {[%emt 0:00:30]} Be6 {[%emt 0:04:30]} 12. Bh3 {[%emt 0:03:30] Inhibits Ng4.} (12. Nxd5 $2 Nxd5 13. Rxd5 O-O $1 $19) (12. Nd4 {simplifies} Bxd4 13. Qxd4 O-O 14. f3) 12... O-O {[%emt 0:21:30]} 13. Bxe6 {[%emt 0:00:30]} fxe6 {[%emt 0:00:30]} 14. Nd4 $36 {[%emt 0:11:30][%mdl 2048] White has some pressure.} Bxd4 {[%emt 0:04:30]} (14... Rae8 $11 {remains equal.}) 15. Qxe6+ $16 {[%emt 0:03:30]} ({Much weaker is} 15. Rxd4 $6 Rfe8 $11) 15... Rf7 {[%emt 0:02:30]} 16. Rxd4 {[%emt 0:00:30][%cal Rc3d5]} Re8 {[%emt 0:00:00]} 17. Qd6 {[%emt 0:04:30] White has more active pieces.} Ne4 {[%emt 0:00:00]} 18. Qxd5 {[%emt 0:00:30]} Qxd5 {[%emt 0:00:30]} 19. Nxd5 {[%emt 0:00:30] Threatens to win with Re1.} Nxf2 {[%emt 0:00:30]} 20. Rg1 {[%emt 0:00:30]} g5 {[%emt 0:05:30]} 21. b3 {[%emt 0:06:30]} Kg7 {[%emt 0:00:30]} 22. Rd2 {[%emt 0:06:30]} Nh3 {[%emt 0:02:30] [#]} 23. Rgg2 {[%emt 0:00:30]} Re1+ {[%emt 0:01:30]} 24. Rd1 {[%emt 0:01:30]} Re5 {[%emt 0:03:03]} 25. c4 {[%emt 0:00:30]} Kg6 {[%emt 0:01:00]} 26. Kc2 {[%emt 0:00:30]} Kh5 {[%emt 0:01:17]} 27. Kc3 {[%emt 0:06:30]} Nf2 {[%emt 0:02:55] [#]} 28. Rd2 {[%emt 0:00:30]} Ne4+ {[%emt 0:10:25]} (28... Ref5 $16 {keeps fighting.} 29. Kb4 Rf3) 29. Kd4 $18 {[%emt 0:01:30]} Nxd2 {[%emt 0:00:12]} 30. Kxe5 {[%emt 0:00:30][%mdl 4096] Endgame KRN-KRN} Nf3+ {[%emt 0:00:21]} 31. Ke6 {[%emt 0:05:30]} Kg6 {[%emt 0:00:27]} 32. Ne7+ {[%emt 0:00:30]} Kg7 {[%emt 0:00:04]} 33. Nf5+ {[%emt 0:00:30]} Kf8 {[%emt 0:00:26]} 34. g4 {[%emt 0:00:30]} h5 {[%emt 0:00:28]} 35. h3 {[%emt 0:01:30][%cal Bh2h3,Bh3g4,Bg4f5][%mdl 32]} (35. gxh5 Rxf5 36. Kxf5 Nh4+ 37. Ke5 (37. Kxg5 Nxg2 38. Kf5 Kf7 $18) 37... Nxg2 $18) 35... hxg4 {[%emt 0:01:11]} 36. hxg4 {[%emt 0:00:30]} ({Weaker is} 36. Rxg4 Rc7 37. Rg3 Rc6+ 38. Kd5 Nh4 39. Rxg5 Nxf5 $18) 36... Nh4 {[%emt 0:00:07]} 37. Rd2 {[%emt 0:04:30][%cal Rd2d8]} Nxf5 {[%emt 0:00:12]} 38. gxf5 {[%emt 0:00:30] KR-KR} Re7+ {[%emt 0:02:06]} (38... Kg7 $142 39. Rg2 Rf6+ 40. Ke5 Rc6 41. Rxg5+ Kf7) 39. Kf6 {[%emt 0:00:00] Threatening mate with Rd8+.} g4 {[%emt 0:00:04]} 40. Rd8+ {[%emt 0:00:00]} Re8 {[%emt 0:00:03]} 41. Rd7 {[%emt 0:50:30]} Rc8 {[%emt 0:50:59]} 42. Rf7+ {[%emt 0:00:00]} Ke8 {[%emt 0:00:03]} 43. Rxb7 {[%emt 0:00:00] Black must now prevent Kg7.} g3 {[%emt 0:00:55]} 44. Rg7 {[%emt 0:00:30]} Rc6+ {[%emt 0:00:04]} 45. Ke5 {[%emt 0:00:30]} Ra6 {[%emt 0:00:31]} 46. Rxg3 {[%emt 0:00:30]} Rxa2 {[%emt 0:00:04]} 47. Rg7 {[%emt 0:00:00] And now c5 would win.} a5 {[%emt 0:00:13]} 48. Rb7 {[%emt 0:03:00] White threatens c5 and mate.} a4 {[%emt 0:00:16]} 49. bxa4 {[%emt 0:00:30] White mates.} Rxa4 {[%emt 0:00:04]} 50. c5 {[%emt 0:00:30]} Rc4 {[%emt 0:00:50]} 51. Ke6 {[%emt 0:00:30][%cal Rb7b8]} Re4+ {[%emt 0:00:48]} 52. Kf6 {[%emt 0:02:30]} Rc4 {[%emt 0:00:13]} 53. Re7+ {[%emt 0:27:53] Weighted Error Value: White=0.04 (flawless) /Black=0.40} 1-0

[Event "German Bundesliga 2022-23"]
[Site "Germany"]
[Date "2022.11.26"]
[Round "3"]
[White "Dinstuhl, Volkmar"]
[Black "Watson, William N"]
[Result "1-0"]
[ECO "E70"]
[WhiteElo "2379"]
[BlackElo "2492"]
[Annotator "TA"]
[PlyCount "107"]
[EventDate "2022.10.21"]
[EventType "team-tourn"]
[EventCountry "GER"]
[SourceTitle "playchess.com"]
[Source "ChessBase"]
[SourceQuality "1"]
[TimeControl "40/6000+30:3000+30"]

{[%evp 9,107,36,36,27,34,16,64,47,45,41,72,43,37,19,18,12,123,106,107,119,112,101,161,183,175,162,185,182,182,183,174,145,220,211,232,209,245,236,240,220,230,223,287,280,264,240,314,203,208,187,200,183,216,219,260,250,327,268,341,263,254,269,262,250,258,250,289,26,41,0,122,116,129,95,98,100,91,83,85,45,150,13,11,0,8,8,8,4,239,239,239,239,638,629,588,588,29996,29997,29997,29998]} 1. d4 {[%emt 0:01:00]} Nf6 {[%emt 0:01:00]} 2. c4 {[%emt 0:00:00]} g6 {[%emt 0:00:30]} 3. Nc3 {[%emt 0:00:00]} Bg7 {[%emt 0:00:30]} 4. e4 {[%emt 0:00:00]} O-O {[%emt 0:00:00]} 5. h3 {[%emt 0:00:00]} c5 {[%emt 0:08:00]} 6. d5 {[%emt 0:00:30] E70: King's Indian: Miscellaneous lines with 4 e4, including 5 Nge2 and 5 Bd3 0-0 6 Nge2.} e6 {[%emt 0:03:30]} 7. Bd3 {[%emt 0:01:30]} a6 {[%emt 0:10:30]} (7... exd5 $11 8. cxd5 (8. Nxd5 Nxe4 9. Ne2 Re8 $15) 8... Re8) 8. a4 {[%emt 0:00:30] White is slightly better.} exd5 {[%emt 0:03:30]} 9. cxd5 {[%emt 0:00:30]} (9. Nxd5 Nxe4 10. Bxe4 Re8) 9... Re8 {[%emt 0:01:30][%cal Of6e4]} 10. Nge2 {[%emt 0:10:30]} d6 {[%emt 0:03:30] [#]} 11. Bf4 $146 {[%emt 0:02:30]} ({Predecessor:} 11. O-O Nbd7 12. Re1 Rb8 13. Ng3 Qc7 14. Be3 c4 15. Bf1 b5 16. axb5 axb5 17. b4 Nh5 18. Nge2 Ne5 19. Ra7 Qd8 {0-1 (52) Sachdev,T (2422)-Gupta,A (2634) Glasgow 2014}) 11... Nh5 {[%emt 0:21:30]} 12. Bh2 {[%emt 0:03:30]} f5 {[%emt 0:07:30]} (12... Qc7 $11) 13. exf5 {[%emt 0:06:30]} Bxf5 {[%emt 0:02:30]} 14. O-O $1 {[%emt 0:08:30]} Bxd3 {[%emt 0:02:30]} 15. Qxd3 {[%emt 0:03:30]} Qe7 {[%emt 0:00:00]} (15... c4 $16 {might work better.} 16. Qd2 (16. Qxc4 Nd7 $16) 16... Nd7) 16. g4 $1 $18 {[%emt 0:04:30]} Nf6 {[%emt 0:00:00] [#]} 17. Nf4 $1 {[%emt 0:00:30]} Nbd7 {[%emt 0:03:30]} 18. Ne6 {[%emt 0:01:30]} Ne5 {[%emt 0:00:30]} 19. Bxe5 {[%emt 0:08:30]} dxe5 {[%emt 0:00:30]} 20. Rae1 {[%emt 0:00:00]} Nxd5 {[%emt 0:14:30]} (20... Rab8 $16) 21. Nxd5 {[%emt 0:07:00]} (21. Nxg7 Nf4 22. Qf3 Kxg7 $17) 21... Qxe6 {[%emt 0:00:30]} 22. Nc7 $1 {[%emt 0:00:00][%csl LRa8,LRe6,LRe8]} Qc6 {[%emt 0:01:30]} 23. Nxa8 {[%emt 0:01:00]} (23. Nxe8 $6 Rxe8 24. Qc4+ Kh8) 23... Rxa8 {[%emt 0:00:30]} 24. Qc4+ {[%emt 0:04:30]} Kh8 {[%emt 0:00:00]} 25. Rc1 {[%emt 0:00:30]} Rf8 {[%emt 0:01:00]} 26. Qxc5 {[%emt 0:06:30]} Qxa4 {[%emt 0:00:30]} 27. Qd5 {[%emt 0:00:30] Prevents Qb3.} h5 {[%emt 0:04:50]} 28. Qc4 {[%emt 0:07:30]} Qe8 {[%emt 0:02:39]} 29. Rce1 {[%emt 0:02:30]} Qe7 {[%emt 0:00:59]} 30. Re4 {[%emt 0:02:30]} Qf6 {[%emt 0:01:04]} 31. Qe2 {[%emt 0:03:30]} Qg5 {[%emt 0:04:58]} 32. Rd1 {[%emt 0:03:30][%cal Bf1d1,Bd1d2,Bd2c2][%mdl 32]} Qf6 {[%emt 0:01:56]} 33. Kg2 {[%emt 0:01:30]} Qc6 {[%emt 0:02:18]} 34. Rd2 {[%emt 0:05:19]} Bh6 {[%emt 0:03:00]} 35. Rc2 {[%emt 0:00:48]} Qd5 {[%emt 0:00:17]} 36. b4 {[%emt 0:07:50]} (36. gxh5 gxh5 37. Kf1 Rf5 38. Rc8+ Kg7 $18) 36... hxg4 {[%emt 0:03:56]} 37. hxg4 {[%emt 0:00:18]} Bf4 {[%emt 0:00:06]} 38. Qc4 $2 {[%emt 0:05:20]} (38. Qf3 $18 {[%cal Oe4f4] And now Rxf4! would win.} Qf7 39. Rec4) 38... Qd7 $1 $11 {[%emt 0:01:29]} (38... Qd1 39. Qe2 Qd6 40. Rec4 $16) 39. f3 {[%emt 0:01:50] Black must now prevent Qc7.} Rd8 {[%emt 0:01:06]} (39... Qd1 40. Qc3 Kh7 41. Re1 $16) (39... Qh7 $1 $11 {remains equal.} 40. Kg1 Qh4) 40. Qc7 {[%emt 0:01:53]} (40. Rxf4 $6 exf4 41. Qxf4 Qe6 $14) 40... Qd1 {[%emt 0:00:00]} 41. Rce2 {[%emt 0:09:42]} Rd7 {[%emt 0:15:52]} 42. Qc2 {[%emt 0:01:30]} Qd6 {[%emt 0:01:30]} 43. Re1 {[%emt 0:22:30]} Kg7 {[%emt 0:01:30]} 44. Rc4 {[%emt 0:06:26]} Qb6 {[%emt 0:04:30]} ({Black should play} 44... Kf6 $14) 45. Qf2 {[%emt 0:04:06]} (45. Rd1 $16 Rf7 46. Qc3) 45... Qd8 {[%emt 0:02:30]} (45... Rd2 46. Re2 Rxe2 47. Qxe2 $16) 46. Rc2 {[%emt 0:01:21]} Rd4 {[%emt 0:02:30]} (46... Qh8 47. Rh1 Qd8 48. Qh4 $16) 47. Re4 {[%emt 0:02:16]} Rxe4 {[%emt 0:15:41]} 48. fxe4 {[%emt 0:00:03][%mdl 4096] Endgame KQR-KQB} Qd3 $2 {[%emt 0:03:21] Black cannot hold the game after this.} (48... Qe7 $11 {and Black stays safe.}) 49. Rc7+ $18 {[%emt 0:00:48]} Kg8 {[%emt 0:01:48]} 50. Qf3 {[%emt 0:01:26] Dancing on a razor blade.} ({And not} 50. Rxb7 Qxe4+ 51. Qf3 Qc2+ 52. Kg1 Qc1+ 53. Kg2 (53. Qf1 Be3+ 54. Kg2 Qc2+ 55. Kf3 Qc6+ 56. Kxe3 Qxb7 $15) 53... Qc2+ 54. Qf2 Qe4+ 55. Qf3 Qc2+ $11) 50... Qd2+ {[%emt 0:01:14] [#]} (50... Qb1 51. Qe2 (51. Rxb7 Qc2+ 52. Kf1 Qc1+ 53. Kf2 Qc2+ 54. Qe2 Qb3 $16) 51... Qxb4) 51. Kf1 $1 {[%emt 0:00:07] White threatens Qb3+ and mate.} Qxb4 {[%emt 0:00:56]} 52. Qd3 {[%emt 0:00:52] Against Qb1+. Intending Qd5+ and mate.} Qd4 {[%emt 0:04:43]} 53. Qb3+ {[%emt 0:00:26]} Kh8 {[%emt 0:00:01]} 54. Qh3+ {[%emt 0:00:06] Weighted Error Value: White=0.26 (precise) /Black=0.45} 1-0

[Event "German Bundesliga 2022-23"]
[Site "Germany"]
[Date "2022.11.26"]
[Round "3.1"]
[White "Mamedyarov, Shakhriyar"]
[Black "Moussard, Jules"]
[Result "1/2-1/2"]
[ECO "D35"]
[WhiteElo "2741"]
[BlackElo "2686"]
[Annotator "TA"]
[PlyCount "53"]
[EventDate "2022.10.21"]
[EventType "team-tourn"]
[EventCountry "GER"]
[SourceTitle "playchess.com"]
[Source "ChessBase"]
[SourceQuality "1"]
[TimeControl "40/6000+30:3000+30"]

{[%evp 15,53,10,23,4,27,21,33,34,35,36,37,27,32,12,29,12,20,0,0,0,0,0,43,45,45,25,23,15,25,0,0,0,10,0,0,-16,-13,-12,-11,-19]} 1. c4 {[%emt 0:12:16]} e6 {[%emt 0:00:31]} 2. Nc3 {[%emt 0:00:14]} d5 {[%emt 0:00:06]} 3. d4 {[%emt 0:00:18]} Nf6 {[%emt 0:00:07]} 4. cxd5 {[%emt 0:00:09]} exd5 {[%emt 0:00:07]} 5. Bg5 {[%emt 0:00:06][%cal Bc1g5,Bg5h4,Bh4g3,Bg3f4][%mdl 32]} c6 {[%emt 0:00:18]} 6. e3 {[%emt 0:00:08]} h6 {[%emt 0:00:20]} 7. Bh4 {[%emt 0:00:05]} Be7 {[%emt 0:00:12]} 8. Bd3 {[%emt 0:00:22]} O-O {[%emt 0:00:22]} 9. Nge2 $1 {[%emt 0:00:50][%mdl 4] is currently scoring better than 9.Qc2. D35: Queen's Gambit Declined: Exchange Variation.} Ne8 {[%emt 0:01:03]} 10. Bg3 {[%emt 0:00:46]} Nd6 {[%emt 0:00:06]} 11. Qc2 {[%emt 0:01:46] White is slightly better.} Re8 {[%emt 0:00:51]} 12. O-O {[%emt 0:01:16]} Bf8 {[%emt 0:00:35]} 13. Rae1 {[%emt 0:03:20]} a5 {[%emt 0:04:49]} 14. a3 {[%emt 0:02:16]} Na6 {[%emt 0:07:21] [#]} 15. Bf4 $146 {[%emt 0:05:49]} ({Predecessor:} 15. Nf4 Bd7 16. f3 b5 17. Qf2 b4 18. axb4 Nxb4 19. Bb1 a4 20. e4 a3 21. bxa3 Rxa3 {½-½ (31) Lu,S (2605)-Li,D (2539) Xinghua 2022}) 15... b5 {[%emt 0:13:42]} 16. Ng3 {[%emt 0:06:30]} Nc4 {[%emt 0:04:48]} 17. e4 {[%emt 0:01:39]} Be6 {[%emt 0:05:06]} 18. exd5 {[%emt 0:12:09]} Bxd5 {[%emt 0:15:03]} 19. Rxe8 {[%emt 0:03:49]} Qxe8 {[%emt 0:00:05]} 20. Nxd5 {[%emt 0:00:17]} cxd5 {[%emt 0:00:05]} 21. Nf5 {[%emt 0:04:58]} Qe6 {[%emt 0:07:33]} 22. h3 {[%emt 0:11:05]} a4 {[%emt 0:05:21] The position is equal.} 23. Bc1 {[%emt 0:02:57]} Re8 {[%emt 0:06:46]} 24. Qd1 {[%emt 0:07:54]} Nb8 {[%emt 0:01:22]} 25. b3 {[%emt 0:02:00]} axb3 {[%emt 0:02:24]} 26. Qxb3 {[%emt 0:00:01]} Qc6 {[%emt 0:01:14]} 27. Bb1 {[%emt 0:04:59] Weighted Error Value: White=0.09 (flawless) /Black=0.08 (flawless)} 1/2-1/2

[Event "German Bundesliga 2022-23"]
[Site "Germany"]
[Date "2022.11.26"]
[Round "3.1"]
[White "Vitiugov, Nikita"]
[Black "McShane, Luke J"]
[Result "1/2-1/2"]
[ECO "E17"]
[WhiteElo "2726"]
[BlackElo "2637"]
[Annotator "TA"]
[PlyCount "45"]
[EventDate "2022.10.21"]
[EventType "team-tourn"]
[EventCountry "GER"]
[SourceTitle "playchess.com"]
[Source "ChessBase"]
[SourceQuality "1"]
[TimeControl "40/6000+30:3000+30"]

{[%evp 13,45,23,25,17,20,18,20,21,24,23,21,21,35,40,54,13,17,8,20,6,21,0,21,33,23,8,13,0,0,0,14,0,6,0]} 1. d4 {[%emt 0:00:07]} Nf6 {[%emt 0:00:05]} 2. c4 {[%emt 0:00:05]} e6 {[%emt 0:00:05]} 3. Nf3 {[%emt 0:00:39]} b6 {[%emt 0:00:06]} 4. g3 {[%emt 0:00:25]} Bb7 {[%emt 0:00:16]} 5. Bg2 {[%emt 0:00:05]} Be7 {[%emt 0:00:23]} 6. O-O {[%emt 0:00:12]} O-O {[%emt 0:00:18]} 7. Re1 {[%emt 0:00:46]} Na6 {[%emt 0:01:52]} 8. a3 {[%emt 0:00:59] E17: Queen's Indian: 4 g3 Bb7 5 Bg2 Be7.} d5 {[%emt 0:10:35]} 9. cxd5 {[%emt 0:01:06]} exd5 {[%emt 0:00:18]} 10. Bf4 {[%emt 0:00:39]} c5 {[%emt 0:00:58]} 11. Nc3 {[%emt 0:02:19]} Ne4 {[%emt 0:03:39]} 12. Rc1 {[%emt 0:02:19]} Re8 {[%emt 0:08:56]} 13. h4 {[%emt 0:06:31]} h6 {[%emt 0:06:37] [#]} 14. dxc5 $146 {[%emt 0:18:16] [#] aiming for Nxe4.} (14. e3 {simplifies} Nxc3 15. Rxc3 Bf6 16. Rc1) ({Predecessor:} 14. Be5 cxd4 15. Bxd4 Nac5 16. e3 Ne6 17. Be5 Bf6 18. Rc2 Bxe5 19. Nxe5 Rc8 20. Nb5 {1-0 (34) Sarana,A (2640)-Gholami,A (2532) Konya 2019}) 14... Naxc5 {[%emt 0:01:47]} (14... Nxc3 {simplifies} 15. Rxc3 Nxc5 16. Rc2 Ne4) 15. Be5 {[%emt 0:03:31]} Bf8 {[%emt 0:23:14]} 16. e3 {[%emt 0:10:57]} (16. b4 {simplifies} Nxc3 17. Bxc3 Ne4 18. Bb2) 16... a5 {[%emt 0:06:39]} (16... Ba6 $5 {[%cal Rc5d3]} 17. Bf1 (17. Nxd5 Nxf2 18. Kxf2 Nd3+ 19. Kg1 Qxd5 $19) (17. Qxd5 Nxc3 18. Qxd8 Ne2+ 19. Rxe2 Raxd8 $17) 17... Bxf1 18. Rxf1 Nxc3 19. Bxc3 Qd7 $11) 17. Bd4 {[%emt 0:09:22]} a4 {[%emt 0:13:03]} 18. Ne5 {[%emt 0:02:55]} Nb3 {[%emt 0:08:10]} 19. Rc2 {[%emt 0:03:41]} Bc5 {[%emt 0:04:47] The position is equal.} 20. Bf1 {[%emt 0:09:58]} Nd6 {[%emt 0:04:20]} 21. Bg2 {[%emt 0:12:38]} Ne4 {[%emt 0:01:57]} 22. Bf1 {[%emt 0:04:26]} Nd6 {[%emt 0:00:16]} 23. Bg2 {[%emt 0:02:32] Weighted Error Value: White=0.07 (flawless) /Black=0.06 (flawless)} 1/2-1/2